fUST/lending_fUST_20241113
["ID","MTS","AMOUNT","RATE_DAILY","PERIOD"]
[342119310,1731469843571,-201.97072842,0.0001999,2]
[342119311,1731469843581,-231.07986018,0.0001999,2]
[342119331,1731469846396,-3914.12570853,0.0001999,2]
[342119335,1731469996676,163.159749,0.00013973,2]
[342119351,1731470696478,179.529506,0.00013973,2]
[342119476,1731471038377,-5000.0,0.00017998,2]
[342119477,1731471038387,-5000.0,0.0001818,2]
[342119478,1731471038396,-300.0,0.00019389,2]
[342119479,1731471038405,-300.0,0.0001939,2]
[342119481,1731471038415,-500.0,0.00019504,2]
[342119482,1731471038424,-500.0,0.00019504,2]
[342119484,1731471038433,-500.0,0.00019504,2]
[342119486,1731471038442,-211.97398315,0.00019504,2]
[342119488,1731471038452,-208.32448069,0.0001989,2]
[342119490,1731471038460,-2381.44582482,0.0001989,2]
[342119492,1731471038469,-500.60446037,0.00019973,2]
[342119494,1731471038479,-500.0,0.00019973,2]
[342119496,1731471038488,-323.05032301,0.00019973,2]
[342119498,1731471038497,-501.48286692,0.00019973,2]
[342119500,1731471038506,-500.0,0.00019973,2]
[342119502,1731471038515,-302.16310524,0.00019973,2]
[342119504,1731471038523,-600.54376901,0.00019973,2]
[342119506,1731471038533,-500.74054268,0.00019973,2]
[342119508,1731471038543,-500.0,0.00019973,2]
[342119510,1731471038552,-500.0,0.00019973,2]
[342119512,1731471038561,-500.0,0.00019973,2]
[342119514,1731471038570,-500.0,0.00019973,2]
[342119516,1731471038579,-500.0,0.00019973,2]
[342119517,1731471038588,-500.82632374,0.00019973,2]
[342119518,1731471038596,-502.57660052,0.00019973,2]
[342119519,1731471038606,-500.0,0.00019973,2]
[342119520,1731471038614,-500.99455037,0.00019973,2]
[342119521,1731471038623,-500.34629178,0.00019973,2]
[342119522,1731471038632,-372.67977275,0.00019973,2]
[342119523,1731471038641,-501.06592868,0.00019973,2]
[342119524,1731471038650,-500.43429681,0.00019973,2]
[342119525,1731471038658,-500.42886103,0.00019973,2]
[342119527,1731471038667,-500.0,0.00019989,2]
[342119528,1731471038676,-175.67833059,0.00019989,2]
[342119529,1731471038685,-231.98712073,0.00019989,2]
[342119530,1731471038694,-199.58351202,0.00019989,2]
[342119531,1731471038703,-500.0,0.00019989,2]
[342119533,1731471038713,-596.69192643,0.00019989,2]
[342119534,1731471038722,-500.0,0.00019989,2]
[342119535,1731471038731,-500.0,0.00019989,2]
[342119536,1731471038740,-500.0,0.00019989,2]
[342119537,1731471038749,-500.0,0.00019989,2]
[342119538,1731471038758,-500.0,0.00019989,2]
[342119539,1731471038768,-429.98914504,0.00019989,2]
[342119540,1731471038777,-500.0,0.00019989,2]
[342119541,1731471038786,-477.99671439,0.00019989,2]
[342119542,1731471038795,-500.0,0.00019989,2]
[342119543,1731471038805,-503.87603841,0.00019989,2]
[342119544,1731471038815,-201.97072842,0.0001999,2]
[342119545,1731471038824,-31372.54450283,0.0001999,2]
[342119562,1731471043340,-392.08874795,0.0001979,2]
[342119563,1731471043351,-1748.54426281,0.0001979,2]
[342119619,1731471046233,-2859.36698924,0.0001979,2]
[342119622,1731471046244,-6231.7499434,0.0001999,2]
[342119627,1731471046288,-371.19997,0.0001999,2]
[342119630,1731471046300,-17643.53854507,0.0001999,2]
[342119653,1731471369697,170.55303,0.00013973,2]
[342119762,1731471809383,959.54218947,0.00013973,2]
[342119778,1731471943074,619.0,0.00016,2]
[342119784,1731472124990,18803.46474308,0.0001,2]
[342119786,1731472128303,1000.0,0.0001,2]
[342119835,1731472238583,-566.3043233,0.00016831,2]
[342119969,1731472271122,194.112927,0.00013973,2]
[342119980,1731472717675,5000.0,0.00016,2]
[342119981,1731472725937,5000.0,0.00016,2]
[342120003,1731473092415,2000.0,0.00027,60]
[342120004,1731473103677,5000.0,0.00016,2]
[342120005,1731473115693,214.079887,0.00013973,2]
[342120007,1731473297965,5000.0,0.00016,2]
[342120012,1731473306144,5000.0,0.00016,2]
[342120056,1731473432568,-362.00004,0.00016186,2]
[342120057,1731473432579,-870.01,0.00016186,2]
[342120058,1731473432626,-290.96810767,0.00016186,2]
[342120059,1731473432641,-333.87500988,0.00016186,2]
[342120060,1731473432652,-685.98,0.00016186,2]
[342120061,1731473432663,-744.5130378,0.00016186,2]
[342120062,1731473432674,-1712.65380465,0.00016186,2]
[342120063,1731473432684,-4440.78194392,0.0001635,2]
[342120156,1731473436108,5000.0,0.00016,2]
[342120159,1731473438733,-413.07882208,0.0001635,2]
[342120160,1731473438744,-146.139234,0.0001635,2]
[342120161,1731473438754,-381.75781,0.0001644,2]
[342120162,1731473438763,-300.0,0.00016553,2]
[342120163,1731473438775,-420.0,0.00018088,2]
[342120164,1731473438784,-3372.3206185,0.00018184,2]
[342120165,1731473438793,-205.44818,0.00018321,2]
[342120166,1731473438802,-159.351563,0.0001866,2]
[342120167,1731473438811,-700.0000009,0.00018678,2]
[342120168,1731473438821,-159.351563,0.00018678,2]
[342120169,1731473438830,-159.351563,0.00018697,2]
[342120170,1731473438839,-159.351563,0.00018716,2]
[342120171,1731473438848,-159.351563,0.00018734,2]
[342120172,1731473438857,-159.351563,0.00018753,2]
[342120173,1731473438867,-999.06852057,0.000188,2]
[342120174,1731473438876,-1000.0,0.00019,2]
[342120175,1731473438894,-397.3092781,0.00019151,2]
[342120176,1731473438903,-587.0,0.00019765,2]
[342120177,1731473438913,-500.23869116,0.00019973,2]
[342120178,1731473438921,-500.0,0.00019973,2]
[342120179,1731473438930,-500.0,0.00019973,2]
[342120180,1731473438939,-500.0,0.00019973,2]
[342120181,1731473438949,-500.0,0.00019973,2]
[342120182,1731473438958,-504.21390397,0.00019973,2]
[342120183,1731473438968,-503.58278516,0.00019973,2]
[342120184,1731473438977,-354.19125454,0.00019973,2]
[342120185,1731473438987,-500.0,0.00019973,2]
[342120186,1731473438996,-224.27757953,0.00019989,2]
[342120187,1731473439006,-12196.62887377,0.00019989,2]
[342120188,1731473439015,-205.71447994,0.00019989,2]
[342120189,1731473439025,-541.30328169,0.00019989,2]
[342120191,1731473439034,-172.48002863,0.00019989,2]
[342120193,1731473439044,-409.91610472,0.00019989,2]
[342120194,1731473439053,-151.0,0.00019989,2]
[342120196,1731473439062,-151.0,0.00019989,2]
[342120198,1731473439071,-151.0,0.00019989,2]
[342120200,1731473439080,-161.568559,0.00019989,2]
[342120202,1731473439090,-151.0,0.00019989,2]
[342120203,1731473439098,-151.0,0.00019989,2]
[342120205,1731473439107,-152.168254,0.00019989,2]
[342120207,1731473439117,-151.0,0.00019989,2]
[342120208,1731473439126,-151.0,0.00019989,2]
[342120209,1731473439142,-151.0,0.00019989,2]
[342120210,1731473439151,-151.0,0.00019989,2]
[342120211,1731473439160,-151.0,0.00019989,2]
[342120212,1731473439169,-184.330214,0.00019989,2]
[342120213,1731473439179,-151.0,0.00019989,2]
[342120214,1731473439188,-151.0,0.00019989,2]
[342120215,1731473439197,-151.0,0.00019989,2]
[342120216,1731473439206,-151.0,0.00019989,2]
[342120217,1731473439214,-151.0,0.00019989,2]
[342120218,1731473439224,-151.0,0.00019989,2]
[342120219,1731473439233,-151.0,0.00019989,2]
[342120221,1731473439242,-201.97072843,0.00019989,2]
[342120222,1731473439251,-96355.26224101,0.0001999,2]
[342120224,1731473439328,-2406.72330647,0.0001999,2]
[342120225,1731473439343,-268.94630638,0.0001999,2]
[342120242,1731473441967,-525.89442,0.0001999,2]
[342120243,1731473441984,-578.17,0.0001999,2]
[342120244,1731473442010,-792.083198,0.0001999,2]
[342120245,1731473442027,-569.091145,0.0001999,2]
[342120247,1731473442043,-591.49873,0.0001999,2]
[342120249,1731473442057,-386.793813,0.0001999,2]
[342120251,1731473442072,-411.07062592,0.0001999,2]
[342120263,1731473443619,-507.04889433,0.0001999,2]
[342120266,1731473443678,-6879.56750037,0.0001999,2]
[342120267,1731473443692,-366.88,0.0001999,2]
[342120268,1731473443734,-640.88654387,0.0001999,2]
[342120292,1731473446805,-5000.0,0.0001979,2]
[342120293,1731473446816,-19647.76083092,0.0001999,2]
[342120294,1731473446827,-269.7219765,0.0001999,2]
[342120295,1731473446840,-373.98919994,0.0001999,2]
[342120298,1731473446864,-732.39998,0.0001999,2]
[342120311,1731473926169,230.875049,0.00013973,2]
[342120396,1731474634241,-1882.601906,0.00016837,2]
[342120397,1731474634253,-353.00004,0.00016837,2]
[342120405,1731474637948,-1623.68493064,0.00016837,2]
[342120406,1731474637960,-1140.71312336,0.00016837,2]
[342120407,1731474637969,-625.07532673,0.00017007,2]
[342120408,1731474637979,-67.52617418,0.00018501,2]
[342120452,1731474642863,-1806.7680527,0.00018316,2]
[342120469,1731474923103,269.463014,0.00013973,2]
[342120476,1731475278580,300.0,0.00027,60]
[342120477,1731475336563,300.0,0.00016,2]
[342120483,1731475419322,300.0,0.00016,2]
[342120492,1731475652188,1020.11,0.00027,60]
[342120493,1731475702476,215.03480187,0.000123,2]
[342120494,1731475704427,3570.71706406,0.000125,2]
[342120495,1731475716264,14679.53314899,0.000134,2]
[342120497,1731475719517,273.62646064,0.0001,2]
[342120498,1731475727136,1265.33626153,0.0001,2]
[342120501,1731475729993,4355.65375104,0.00015,2]
[342120610,1731475838301,-544.19082374,0.00016533,2]
[342120763,1731475840247,-2834.79394659,0.00016533,2]
[342120764,1731475840256,-3459.95365858,0.000167,2]
[342120765,1731475840265,-166.71132,0.00017343,2]
[342120766,1731475840275,-1706.11132287,0.000176,2]
[342120767,1731475840284,-194.73148524,0.00017845,2]
[342120768,1731475840293,-300.0,0.00018189,2]
[342120769,1731475840302,-300.0,0.00018189,2]
[342120770,1731475840311,-2339.83994208,0.0001819,2]
[342120771,1731475840320,-161.400505,0.00018309,2]
[342120772,1731475840328,-24900.0,0.00018439,2]
[342120773,1731475840338,-166.71132,0.00018713,2]
[342120774,1731475840347,-176.853412,0.00019178,2]
[342120775,1731475840356,-284.93377994,0.000195,2]
[342120776,1731475840365,-286.94127331,0.00019799,2]
[342120777,1731475840374,-378.91229718,0.00019799,2]
[342120778,1731475840383,-164.22185716,0.00019799,2]
[342120779,1731475840392,-34341.0064711,0.000198,2]
[342120795,1731475865881,278.11966,0.00013973,2]
[342120802,1731476216886,310.33575,0.00016,2]
[342120815,1731476572979,284.130494,0.00013973,2]
[342120843,1731477032415,-196.4914824,0.00018668,2]
[342120844,1731477032425,-300.0,0.00018697,2]
[342120845,1731477032435,-15756.3823797,0.00018698,2]
[342120846,1731477032445,-161.4005068,0.00018768,2]
[342120847,1731477032455,-1000.0,0.000195,2]
[342120848,1731477032464,-369.19994,0.00019672,2]
[342120849,1731477032473,-265.23860803,0.00019699,2]
[342120850,1731477032483,-189.9558533,0.000197,2]
[342120851,1731477032492,-4174.70043281,0.000197,2]
[342120852,1731477032502,-1000.0,0.000197,2]
[342120853,1731477032511,-165976.63079742,0.000197,2]
[342120854,1731477032522,-84023.36920258,0.000197,2]
[342120856,1731477032531,-503.47062517,0.00019773,2]
[342120857,1731477032540,-300.0,0.000199,5]
[342120858,1731477032550,-240.14893643,0.00019973,2]
[342120859,1731477032559,-500.0,0.00019973,2]
[342120860,1731477032574,-498.87211977,0.00019973,2]
[342120862,1731477032583,-639.05247598,0.00019973,2]
[342120864,1731477032592,-501.25400148,0.00019973,2]
[342120866,1731477032605,-500.8304363,0.00019973,2]
[342120868,1731477032614,-500.0,0.00019973,2]
[342120870,1731477032623,-500.60323869,0.00019973,2]
[342120872,1731477032632,-500.0,0.00019973,2]
[342120874,1731477032641,-150.01,0.00019989,2]
[342120876,1731477032650,-10085.82999293,0.00019989,2]
[342120878,1731477032660,-37307.44886997,0.0001999,2]
[342120880,1731477032669,-151.0,0.0001999,2]
[342120882,1731477032678,-151.0,0.0001999,2]
[342120884,1731477032687,-151.0,0.0001999,2]
[342120886,1731477032697,-151.0,0.0001999,2]
[342120888,1731477032706,-151.0,0.0001999,2]
[342120890,1731477032715,-152.176637,0.0001999,2]
[342120892,1731477032725,-151.0,0.0001999,2]
[342120894,1731477032734,-151.0,0.0001999,2]
[342120896,1731477032743,-220.777574,0.0001999,2]
[342120898,1731477032752,-155.458797,0.0001999,2]
[342120900,1731477032762,-151.0,0.0001999,2]
[342120902,1731477032771,-151.0,0.0001999,2]
[342120904,1731477032780,-151.0,0.0001999,2]
[342120906,1731477032789,-151.0,0.0001999,2]
[342120908,1731477032799,-186.185109,0.0001999,2]
[342120910,1731477032807,-186.185109,0.0001999,2]
[342120912,1731477032822,-151.0,0.0001999,2]
[342120914,1731477032831,-151.0,0.0001999,2]
[342120916,1731477032840,-151.0,0.0001999,2]
[342120918,1731477032850,-151.0,0.0001999,2]
[342120920,1731477032859,-151.0,0.0001999,2]
[342120921,1731477032868,-309.988578,0.0001999,2]
[342120923,1731477032878,-151.0,0.0001999,2]
[342120925,1731477032888,-151.0,0.0001999,2]
[342120927,1731477032897,-151.0,0.0001999,2]
[342120929,1731477032907,-373.635115,0.0001999,2]
[342120932,1731477032916,-373.635115,0.0001999,2]
[342120934,1731477032926,-151.0,0.0001999,2]
[342120936,1731477032935,-151.0,0.0001999,2]
[342120938,1731477032944,-151.0,0.0001999,2]
[342120940,1731477032953,-151.0,0.0001999,2]
[342120942,1731477032963,-151.0,0.0001999,2]
[342120944,1731477032972,-156.127232,0.0001999,2]
[342120946,1731477032981,-151.0,0.0001999,2]
[342120948,1731477032991,-151.0,0.0001999,2]
[342120950,1731477033004,-151.0,0.0001999,2]
[342120952,1731477033014,-151.0,0.0001999,2]
[342120954,1731477033023,-151.0,0.0001999,2]
[342120956,1731477033032,-162.536587,0.0001999,2]
[342120958,1731477033043,-162.536587,0.0001999,2]
[342120960,1731477033052,-172.219704,0.0001999,2]
[342120962,1731477033061,-172.219704,0.0001999,2]
[342120964,1731477033074,-151.0,0.0001999,2]
[342120966,1731477033084,-160.789959,0.0001999,2]
[342120968,1731477033094,-151.0,0.0001999,2]
[342120970,1731477033103,-14128.6600151,0.0002,2]
[342120972,1731477033114,-1169.27083333,0.0002,2]
[342120973,1731477033124,-4342.23463622,0.0002,2]
[342120975,1731477033134,-350.9945922,0.0002,2]
[342120976,1731477033144,-284.40911409,0.0002,5]
[342120977,1731477033154,-160.0,0.0002,2]
[342120978,1731477033163,-659.66163409,0.0002,2]
[342120979,1731477033173,-232.54,0.0002,2]
[342120980,1731477033183,-8648.92084175,0.0002,2]
[342120981,1731477033193,-1321.5952558,0.0002,2]
[342120982,1731477033203,-151.0,0.0002,2]
[342120983,1731477033212,-151.0,0.0002,2]
[342120984,1731477033222,-152.705562,0.0002,2]
[342120985,1731477033231,-151.0,0.0002,2]
[342120986,1731477033240,-184.16549,0.0002,2]
[342120987,1731477033249,-152.256781,0.0002,2]
[342120988,1731477033259,-151.0,0.0002,2]
[342120989,1731477033268,-151.0,0.0002,2]
[342120990,1731477033277,-153.21119,0.0002,2]
[342120991,1731477033286,-151.0,0.0002,2]
[342120992,1731477033296,-196.905171,0.0002,2]
[342120993,1731477033306,-152.559443,0.0002,2]
[342120994,1731477033317,-151.0,0.0002,2]
[342120995,1731477033327,-151.0,0.0002,2]
[342120996,1731477033336,-151.0,0.0002,2]
[342120997,1731477033346,-151.0,0.0002,2]
[342120998,1731477033355,-246.665693,0.0002,2]
[342120999,1731477033365,-151.0,0.0002,2]
[342121000,1731477033374,-151.0,0.0002,2]
[342121001,1731477033384,-151.0,0.0002,2]
[342121002,1731477033393,-151.0,0.0002,2]
[342121003,1731477033402,-151.0,0.0002,2]
[342121004,1731477033412,-151.0,0.0002,2]
[342121005,1731477033421,-151.0,0.0002,2]
[342121006,1731477033430,-153.035719,0.0002,2]
[342121007,1731477033439,-151.0,0.0002,2]
[342121008,1731477033448,-151.0,0.0002,2]
[342121009,1731477033457,-151.0,0.0002,2]
[342121010,1731477033467,-151.0,0.0002,2]
[342121011,1731477033476,-151.0,0.0002,2]
[342121012,1731477033485,-151.0,0.0002,2]
[342121013,1731477033494,-151.0,0.0002,2]
[342121014,1731477033503,-153.04407,0.0002,2]
[342121015,1731477033512,-152.790867,0.0002,2]
[342121016,1731477033522,-1000.0,0.0002,2]
[342121017,1731477033531,-1000.0,0.0002,2]
[342121018,1731477033540,-1000.0,0.0002,2]
[342121019,1731477033550,-1000.0,0.0002,2]
[342121020,1731477033559,-710.341615,0.0002,2]
[342121021,1731477033572,-151.0,0.0002,2]
[342121022,1731477033581,-151.775854,0.0002,2]
[342121023,1731477033590,-186.185109,0.0002,2]
[342121024,1731477033600,-186.185109,0.0002,2]
[342121025,1731477033609,-186.185109,0.0002,2]
[342121026,1731477033618,-186.185109,0.0002,2]
[342121027,1731477033627,-186.185109,0.0002,2]
[342121028,1731477033636,-186.185109,0.0002,2]
[342121029,1731477033646,-186.185109,0.0002,2]
[342121030,1731477033655,-186.185109,0.0002,2]
[342121031,1731477033665,-186.185109,0.0002,2]
[342121032,1731477033674,-186.185109,0.0002,2]
[342121033,1731477033683,-186.185109,0.0002,2]
[342121034,1731477033692,-186.185109,0.0002,2]
[342121035,1731477033702,-186.185109,0.0002,2]
[342121036,1731477033712,-186.185109,0.0002,2]
[342121037,1731477033721,-151.0,0.0002,2]
[342121038,1731477033731,-151.0,0.0002,2]
[342121039,1731477033740,-151.0,0.0002,2]
[342121040,1731477033749,-151.0,0.0002,2]
[342121041,1731477033758,-151.0,0.0002,2]
[342121042,1731477033768,-160.25628,0.0002,2]
[342121043,1731477033778,-151.0,0.0002,2]
[342121044,1731477033787,-151.0,0.0002,2]
[342121045,1731477033797,-151.0,0.0002,2]
[342121046,1731477033806,-151.0,0.0002,2]
[342121047,1731477033818,-151.0,0.0002,2]
[342121048,1731477033827,-151.0,0.0002,2]
[342121049,1731477033837,-151.0,0.0002,2]
[342121050,1731477033846,-151.0,0.0002,2]
[342121051,1731477033856,-238.320014,0.0002,2]
[342121052,1731477033864,-151.0,0.0002,2]
[342121053,1731477033874,-151.0,0.0002,2]
[342121054,1731477033884,-151.0,0.0002,2]
[342121055,1731477033893,-151.0,0.0002,2]
[342121056,1731477033902,-285.755907,0.0002,2]
[342121057,1731477033912,-151.0,0.0002,2]
[342121058,1731477033922,-151.0,0.0002,2]
[342121059,1731477033931,-151.0,0.0002,2]
[342121060,1731477033941,-309.988578,0.0002,2]
[342121061,1731477033951,-309.988578,0.0002,2]
[342121062,1731477033960,-309.988578,0.0002,2]
[342121063,1731477033970,-309.988578,0.0002,2]
[342121064,1731477033980,-309.988578,0.0002,2]
[342121065,1731477033994,-309.988578,0.0002,2]
[342121066,1731477034006,-309.988578,0.0002,2]
[342121067,1731477034016,-309.988578,0.0002,2]
[342121068,1731477034026,-151.0,0.0002,2]
[342121069,1731477034037,-1000.0,0.0002,2]
[342121070,1731477034047,-151.0,0.0002,2]
[342121071,1731477034056,-151.0,0.0002,2]
[342121072,1731477034068,-151.0,0.0002,2]
[342121073,1731477034078,-151.0,0.0002,2]
[342121074,1731477034088,-151.0,0.0002,2]
[342121075,1731477034097,-151.0,0.0002,2]
[342121076,1731477034237,-199.679831,0.0002,2]
[342121077,1731477034246,-426.5209389,0.0002,2]
[342121078,1731477034256,-373.635115,0.0002,2]
[342121079,1731477034266,-373.635115,0.0002,2]
[342121080,1731477034276,-240.647539,0.0002,2]
[342121081,1731477034286,-373.635115,0.0002,2]
[342121082,1731477034296,-373.635115,0.0002,2]
[342121083,1731477034305,-373.635115,0.0002,2]
[342121084,1731477034317,-373.635115,0.0002,2]
[342121085,1731477034326,-373.635115,0.0002,2]
[342121086,1731477034335,-373.635115,0.0002,2]
[342121087,1731477034344,-373.635115,0.0002,2]
[342121088,1731477034353,-373.635115,0.0002,2]
[342121089,1731477034363,-373.635115,0.0002,2]
[342121090,1731477034372,-373.635115,0.0002,2]
[342121091,1731477034381,-373.635115,0.0002,2]
[342121092,1731477034391,-373.635115,0.0002,2]
[342121093,1731477034400,-151.0,0.0002,2]
[342121094,1731477034409,-151.0,0.0002,2]
[342121095,1731477034418,-150.0,0.0002,2]
[342121096,1731477034427,-151.0,0.0002,2]
[342121097,1731477034436,-151.0,0.0002,2]
[342121098,1731477034446,-151.0,0.0002,2]
[342121099,1731477034455,-151.0,0.0002,2]
[342121100,1731477034464,-151.0,0.0002,2]
[342121101,1731477034473,-151.0,0.0002,2]
[342121102,1731477034482,-151.0,0.0002,2]
[342121103,1731477034492,-151.0,0.0002,2]
[342121104,1731477034501,-277.923598,0.0002,2]
[342121105,1731477034510,-151.0,0.0002,2]
[342121106,1731477034519,-151.0,0.0002,2]
[342121107,1731477034528,-151.0,0.0002,2]
[342121108,1731477034537,-151.0,0.0002,2]
[342121109,1731477034546,-151.0,0.0002,2]
[342121110,1731477034555,-151.0,0.0002,2]
[342121111,1731477034567,-151.0,0.0002,2]
[342121112,1731477034576,-291.218032,0.0002,2]
[342121113,1731477034586,-151.0,0.0002,2]
[342121114,1731477034595,-151.0,0.0002,2]
[342121115,1731477034604,-151.0,0.0002,2]
[342121116,1731477034613,-151.0,0.0002,2]
[342121117,1731477034622,-151.0,0.0002,2]
[342121118,1731477034631,-151.0,0.0002,2]
[342121119,1731477034640,-151.0,0.0002,2]
[342121120,1731477034650,-151.0,0.0002,2]
[342121121,1731477034659,-151.0,0.0002,2]
[342121122,1731477034668,-151.0,0.0002,2]
[342121123,1731477034677,-151.0,0.0002,2]
[342121124,1731477034686,-151.0,0.0002,2]
[342121125,1731477034695,-151.0,0.0002,2]
[342121126,1731477034704,-151.0,0.0002,2]
[342121127,1731477034714,-212.154907,0.0002,2]
[342121128,1731477034723,-151.0,0.0002,2]
[342121129,1731477034732,-151.0,0.0002,2]
[342121130,1731477034742,-151.0,0.0002,2]
[342121131,1731477034751,-151.0,0.0002,2]
[342121132,1731477034760,-151.0,0.0002,2]
[342121133,1731477034770,-151.0,0.0002,2]
[342121134,1731477034779,-273.81793,0.0002,2]
[342121135,1731477034789,-162.536587,0.0002,2]
[342121136,1731477034798,-162.536587,0.0002,2]
[342121137,1731477034808,-162.536587,0.0002,2]
[342121138,1731477034819,-162.536587,0.0002,2]
[342121139,1731477034829,-162.536587,0.0002,2]
[342121140,1731477034838,-162.536587,0.0002,2]
[342121141,1731477034847,-162.536587,0.0002,2]
[342121142,1731477034857,-162.536587,0.0002,2]
[342121143,1731477034867,-162.536587,0.0002,2]
[342121144,1731477034876,-162.536587,0.0002,2]
[342121145,1731477034886,-162.536587,0.0002,2]
[342121146,1731477034896,-162.536587,0.0002,2]
[342121147,1731477034905,-162.536587,0.0002,2]
[342121148,1731477034914,-162.536587,0.0002,2]
[342121149,1731477034923,-172.219704,0.0002,2]
[342121150,1731477034932,-172.219704,0.0002,2]
[342121151,1731477034942,-172.219704,0.0002,2]
[342121152,1731477034952,-172.219704,0.0002,2]
[342121153,1731477034961,-172.219704,0.0002,2]
[342121154,1731477034970,-172.219704,0.0002,2]
[342121155,1731477034980,-172.219704,0.0002,2]
[342121156,1731477034989,-172.219704,0.0002,2]
[342121157,1731477035002,-172.219704,0.0002,2]
[342121158,1731477035011,-172.219704,0.0002,2]
[342121159,1731477035021,-172.219704,0.0002,2]
[342121160,1731477035030,-172.219704,0.0002,2]
[342121161,1731477035041,-172.219704,0.0002,2]
[342121162,1731477035050,-172.219704,0.0002,2]
[342121163,1731477035060,-151.0,0.0002,2]
[342121164,1731477035072,-151.0,0.0002,2]
[342121165,1731477035083,-151.0,0.0002,2]
[342121166,1731477035092,-151.0,0.0002,2]
[342121167,1731477035102,-151.0,0.0002,2]
[342121168,1731477035111,-151.0,0.0002,2]
[342121169,1731477035120,-151.0,0.0002,2]
[342121170,1731477035129,-151.0,0.0002,2]
[342121171,1731477035138,-615.0,0.000202,2]
[342121172,1731477035147,-153.0,0.00020228,2]
[342121173,1731477035156,-153.0,0.00020228,2]
[342121174,1731477035165,-153.0,0.00020228,2]
[342121175,1731477035175,-153.0,0.00020228,2]
[342121176,1731477035184,-153.0,0.00020228,2]
[342121177,1731477035193,-153.0,0.00020228,2]
[342121178,1731477035202,-153.0,0.00020228,2]
[342121179,1731477035212,-153.0,0.00020228,2]
[342121180,1731477035220,-153.0,0.00020228,2]
[342121181,1731477035230,-153.0,0.00020228,2]
[342121182,1731477035239,-153.0,0.00020228,2]
[342121183,1731477035248,-153.0,0.00020228,2]
[342121184,1731477035257,-151.0,0.00020228,2]
[342121185,1731477035267,-373.635115,0.00020228,2]
[342121186,1731477035276,-373.635115,0.00020228,2]
[342121187,1731477035285,-151.0,0.00020228,2]
[342121188,1731477035295,-151.0,0.00020228,2]
[342121189,1731477035304,-151.0,0.00020228,2]
[342121190,1731477035313,-162.536587,0.00020228,2]
[342121191,1731477035325,-162.536587,0.00020228,2]
[342121192,1731477035334,-172.219704,0.00020228,2]
[342121193,1731477035343,-172.219704,0.00020228,2]
[342121194,1731477035352,-151.0,0.00020228,2]
[342121195,1731477035361,-151.0,0.00020373,2]
[342121196,1731477035370,-309.988578,0.00020373,2]
[342121197,1731477035379,-309.988578,0.00020373,2]
[342121198,1731477035389,-136523.57286403,0.00020377,2]
[342121199,1731477035398,-163.501044,0.00020377,2]
[342121200,1731477035407,-186.185109,0.00020377,2]
[342121201,1731477035416,-186.185109,0.00020377,2]
[342121202,1731477035425,-151.0,0.00020377,2]
[342121203,1731477035434,-309.988578,0.00020377,2]